bitfinex-derivatives/quotes_SOLF0:USTF0_20250720
["timestamp","ask_amount","ask_price","bid_price","bid_amount"]
[1752997055916,3.16,178.39,178.37,5.6033]
[1752997056112,3.16,178.4,178.35,104.18]
[1752997056516,3.16,178.4,178.36,5.6037]
[1752997056718,3.16,178.4,178.37,3.09]
[1752997060022,3.16,178.4,178.38,3.09]
[1752997060823,3.16,178.39,178.37,3.09]
[1752997064324,5.6016,178.43,178.37,5.6032]
[1752997064527,5.02182452,178.42,178.37,5.6032]
[1752997064830,3.16,178.41,178.39,3.09]
[1752997066623,1.86182452,178.44,178.39,3.09]
[1752997066931,3.16,178.4,178.39,3.09]
[1752997070028,3.16,178.43,178.39,5.6027]
[1752997070229,3.16,178.43,178.4,3.09]
[1752997072529,3.16,178.43,178.41,3.09]
[1752997072729,3.16,178.41,178.35,104.18]
[1752997072930,3.16,178.39,178.35,107.27]
[1752997073230,1.86182452,178.38,178.35,107.27]
[1752997073432,3.16,178.37,178.35,107.27]
[1752997073925,3.16,178.37,178.35,3.09]
[1752997074129,1.86182452,178.36,178.3,3.09]
[1752997074325,3.16,178.35,178.32,5.6048]
[1752997074630,3.16,178.35,178.32,8.6948]
[1752997075632,3.16,178.46,178.33,3.09]
[1752997075828,3.16,178.37,178.33,3.09]
[1752997076223,3.16,178.37,178.34,5.6043]
[1752997076531,3.16,178.37,178.35,3.09]
[1752997079131,3.16,178.37,178.34,3.19]
[1752997079831,3.16,178.37,178.35,3.19]
[1752997081034,3.16,178.37,178.33,3.19]
[1752997081928,3.16,178.37,178.33,8.7946]
[1752997082126,1.86182452,178.36,178.32,0.03527733]
[1752997082434,3.01,178.34,178.33,5.6045]
[1752997083030,3.01,178.34,178.33,8.7945]
[1752997083229,1.86182452,178.38,178.35,8.7939]
[1752997083428,5.602,178.42,178.36,3.19]
[1752997083630,1.86182452,178.39,178.37,3.19]
[1752997083831,3.01,178.38,178.37,3.19]
[1752997084031,3.01,178.38,178.36,5.6035]
[1752997084333,3.01,178.38,178.36,8.7935]
[1752997084532,3.01,178.38,178.37,8.7934]
[1752997088140,1.86182452,178.42,178.4,5.6025]
[1752997088534,1.86182452,178.42,178.39,3.19]
[1752997088734,3.01,178.41,178.39,8.7926]
[1752997089444,3.01,178.41,178.4,8.7925]
[1752997094946,3.01,178.41,178.4,5.6025]
[1752997095245,3.01,178.41,178.39,5.6027]
[1752997095842,3.01,178.41,178.39,8.7927]
[1752997097543,3.01,178.41,178.4,5.6025]
[1752997097844,3.01,178.41,178.4,8.7925]
[1752997098847,3.01,178.41,178.4,8.7925]
[1752997099047,3.01,178.44,178.38,3.19]
[1752997099349,3.01,178.43,178.4,3.19]
[1752997099545,3.01,178.44,178.43,8.7913]
[1752997103544,3.01,178.46,178.43,3.19]
[1752997103745,3.01,178.45,178.43,3.19]
[1752997104247,3.01,178.45,178.44,8.7912]
[1752997111059,3.22,178.47,178.46,8.6103]
[1752997113758,3.22,178.48,178.47,5.6001]
[1752997113959,3.22,178.48,178.47,8.6101]
[1752997116857,1.86182452,178.52,178.48,5.5998]
[1752997117056,3.22,178.49,178.48,8.6098]
[1752997117656,3.22,178.49,178.48,3.01]
[1752997119264,3.22,178.48,178.4,3.01]
[1752997119465,3.22,178.44,178.4,3.01]
[1752997119664,3.22,178.44,178.43,5.6015]
[1752997119864,3.22,178.44,178.43,8.6115]
[1752997120061,5.08182452,178.45,178.44,3.01]
[1752997127973,5.08182452,178.45,178.44,8.6112]
[1752997128985,1.86182452,178.45,178.43,5.63665969]
[1752997129272,3.22,178.44,178.43,5.63665969]
[1752997130774,3.22,178.44,178.43,8.64665969]
[1752997135873,3.22,178.44,178.43,3.04525969]
[1752997139077,4.41410739,178.44,178.43,3.04525969]
[1752997139274,3.25,178.45,178.43,3.04525969]
[1752997139472,4.44410739,178.45,178.43,3.04525969]
[1752997139776,4.44410739,178.45,178.43,3.01]
[1752997140472,4.44410739,178.45,178.44,3.07]
[1752997144983,3.25,178.44,178.4,3.07]
[1752997145177,3.25,178.44,178.42,3.07]
[1752997145485,4.44410739,178.43,178.42,3.07]
[1752997146284,4.44410739,178.43,178.42,7.49460876]
[1752997147082,4.44410739,178.43,178.42,13.09650876]
[1752997147284,3.25,178.43,178.42,13.09650876]
[1752997152979,1.19410739,178.49,178.43,3.07]
[1752997153177,3.25,178.48,178.46,3.07]
[1752997153386,3.25,178.48,178.47,4.42460876]
[1752997153577,3.25,178.48,178.47,7.49460876]
[1752997153986,3.25,178.48,178.47,3.07]
[1752997154775,3.25,178.48,178.47,8.6703]
[1752997158490,3.25,178.48,178.47,13.08638793]
[1752997160291,3.25,178.48,178.47,8.6703]
[1752997160484,7.46326029,178.52,178.47,13.08587011]
[1752997160688,3.25,178.51,178.49,3.07]
[1752997161390,3.25,178.5,178.49,3.07]
[1752997161695,3.25,178.53,178.49,3.07]
[1752997162081,3.25,178.52,178.49,3.07]
[1752997162284,3.25,178.52,178.51,3.07]
[1752997162679,3.25,178.53,178.52,5.5986]
[1752997162888,3.25,178.53,178.52,8.6686]
[1752997165284,3.25,178.54,178.53,8.6684]
[1752997166496,3.25,178.57,178.54,5.598]
[1752997166788,3.25,178.57,178.55,3.07]
[1752997168698,3.25,178.57,178.54,3.03]
[1752997171002,3.25,178.57,178.53,5.5983]
[1752997171203,1.86446029,178.57,178.53,8.6283]
[1752997171411,3.07,178.56,178.53,8.6283]
[1752997171599,3.07,178.56,178.54,3.03]
[1752997177112,4.26262295,178.55,178.54,3.03]
[1752997178110,3.07,178.55,178.54,8.6281]
[1752997178305,1.19262295,178.55,178.54,8.6281]
[1752997178811,3.07,178.55,178.54,8.6281]
[1752997179006,4.26262295,178.55,178.54,8.6281]
[1752997180911,4.26262295,178.55,178.53,5.5983]
[1752997181208,3.07,178.53,178.52,3.03]
[1752997181413,4.26262295,178.53,178.51,3.03]
[1752997181618,4.26262295,178.52,178.5,5.599]
[1752997181805,4.26262295,178.51,178.5,8.629]
[1752997189417,3.07,178.51,178.5,8.629]
[1752997189616,4.26262295,178.51,178.5,8.629]
[1752997191717,1.19262295,178.51,178.5,8.629]
[1752997193022,4.26262295,178.51,178.5,8.629]
[1752997194523,3.07,178.54,178.49,3.03]
[1752997194719,3.07,178.54,178.51,3.03]
[1752997195022,1.19262295,178.55,178.5,1.19262295]
[1752997195224,4.26262295,178.55,178.52,3.03]
[1752997196624,1.19262295,178.55,178.52,3.03]
[1752997196924,3.07,178.54,178.53,8.6284]
[1752997203433,3.07,178.54,178.53,13.03863563]
[1752997203820,3.2,178.57,178.54,3.02]
[1752997204023,1.19262295,178.58,178.54,1.19262295]
[1752997204226,3.2,178.56,178.55,3.02]
[1752997204934,3.2,178.56,178.55,5.5976]
[1752997205131,3.2,178.57,178.55,3.02]
[1752997205435,3.2,178.57,178.56,5.5973]
[1752997205623,3.2,178.57,178.56,8.6173]
[1752997208337,3.2,178.57,178.56,5.5973]
[1752997208737,4.39262295,178.57,178.55,5.5977]
[1752997208933,3.2,178.56,178.53,4.21262295]
[1752997209138,3.2,178.55,178.54,4.41031893]
[1752997209332,3.2,178.55,178.54,7.43031893]
[1752997209940,3.2,178.55,178.54,13.02811893]
[1752997212941,4.39262295,178.55,178.54,4.41031893]
[1752997213146,1.19262295,178.55,178.52,5.5987]
[1752997213448,4.39262295,178.53,178.52,3.02]
[1752997213648,4.39262295,178.53,178.52,7.43067284]
[1752997214349,4.39262295,178.53,178.52,3.02]
[1752997215050,4.39262295,178.53,178.52,8.6187]
[1752997217948,3.2,178.52,178.51,3.02]
[1752997218155,4.39262295,178.52,178.51,7.43044081]
[1752997218549,4.39262295,178.52,178.51,10.00944081]
[1752997218745,4.39262295,178.52,178.51,13.02944081]
[1752997221052,3.2,178.52,178.51,13.02944081]
[1752997221254,4.39262295,178.52,178.51,13.02944081]
[1752997223858,4.39262295,178.52,178.51,10.00944081]
[1752997225151,4.39262295,178.52,178.51,13.02944081]
[1752997225957,3.2,178.52,178.51,13.02944081]
[1752997226157,4.39262295,178.52,178.51,13.02944081]
[1752997227759,1.19262295,178.52,178.51,13.02944081]
[1752997228256,4.23262295,178.52,178.51,13.02944081]
[1752997233066,1.19262295,178.53,178.52,3.08]
[1752997233270,4.23262295,178.53,178.52,7.48947685]
[1752997233465,4.23262295,178.53,178.52,10.00817685]
[1752997233765,4.23262295,178.53,178.52,13.08817685]
[1752997233969,1.19262295,178.53,178.52,13.08817685]
[1752997234967,1.19262295,178.54,178.53,5.5984]
[1752997235166,1.19262295,178.54,178.53,8.6784]
[1752997235366,5.597,178.58,178.53,3.08]
[1752997235669,4.23262295,178.54,178.53,3.08]
[1752997235973,3.04,178.53,178.49,3.08]
[1752997236168,4.23262295,178.51,178.5,4.41143368]
[1752997237173,4.23262295,178.51,178.5,7.49143368]
[1752997237968,4.23262295,178.51,178.5,13.09073368]
[1752997238385,4.23262295,178.51,178.5,10.01073368]
[1752997239471,4.23262295,178.51,178.5,5.5993]
[1752997240068,3.04,178.5,178.49,5.5996]
[1752997240272,4.23262295,178.5,178.49,10.01306746]
[1752997240566,4.23262295,178.5,178.49,13.09306746]
[1752997242170,3.04,178.53,178.49,4.41346746]
[1752997242374,3.04,178.53,178.52,3.08]
[1752997242674,4.23262295,178.53,178.52,3.08]
[1752997242868,4.23262295,178.53,178.52,8.6787]
[1752997244276,3.04,178.53,178.52,5.5987]
[1752997244470,4.23262295,178.53,178.52,8.6787]
[1752997244874,4.23262295,178.53,178.52,5.5987]
[1752997245074,1.19262295,178.53,178.51,5.5989]
[1752997245277,3.04,178.52,178.51,8.6789]
[1752997245467,3.04,178.52,178.51,5.5989]
[1752997246268,4.23262295,178.52,178.51,5.5989]
[1752997247879,3.04,178.51,178.5,5.5992]
[1752997248072,3.04,178.51,178.5,10.01078443]
[1752997248693,3.04,178.51,178.49,5.5994]
[1752997248875,4.23262295,178.5,178.49,5.5994]
[1752997249175,4.23262295,178.5,178.49,10.01171184]
[1752997249371,4.23262295,178.5,178.49,13.09171184]
[1752997250276,4.23262295,178.5,178.49,10.01171184]
[1752997250771,4.23262295,178.5,178.49,13.09171184]
[1752997251972,3.04,178.5,178.49,13.09171184]
[1752997252278,4.23262295,178.5,178.49,13.09171184]
[1752997256472,3.04,178.5,178.49,13.09171184]
[1752997256678,4.23262295,178.5,178.49,13.09171184]
[1752997261778,3.04,178.5,178.49,13.09171184]
[1752997262979,1.19262295,178.53,178.5,2.98]
[1752997263284,4.27262295,178.53,178.52,2.98]
[1752997263585,4.27262295,178.53,178.52,12.99101184]
[1752997264682,3.08,178.53,178.52,12.99101184]
[1752997264883,1.19262295,178.56,178.55,8.5776]
[1752997265289,1.19262295,178.56,178.55,12.99420643]
[1752997265479,4.27262295,178.56,178.55,12.99420643]
[1752997268287,3.08,178.56,178.55,12.99420643]
[1752997269289,3.08,178.56,178.55,8.5776]
[1752997271892,3.08,178.56,178.55,9.77022295]
[1752997272187,1.19262295,178.59,178.57,2.98]
[1752997272589,3.08,178.58,178.57,2.98]
[1752997273391,4.27262295,178.58,178.57,2.98]
[1752997273890,4.27262295,178.58,178.57,8.5771]
[1752997276997,3.08,178.58,178.57,8.5771]
[1752997277195,4.27262295,178.58,178.57,8.5771]
[1752997277693,5.5957,178.62,178.57,8.5771]
[1752997277906,1.19262295,178.61,178.56,1.19262295]
[1752997278102,4.27262295,178.6,178.59,2.98]
[1752997278993,3.08,178.6,178.59,8.5765]
[1752997279188,4.27262295,178.6,178.59,8.5765]
[1752997279895,3.08,178.6,178.59,8.5765]
[1752997282599,3.08,178.6,178.57,1.19262295]
[1752997282600,3.08,178.59,178.53,2.98]
[1752997282797,3.08,178.56,178.54,2.98]
[1752997283097,3.08,178.57,178.56,5.5975]
[1752997283294,3.08,178.57,178.56,8.5775]
[1752997283498,3.08,178.58,178.56,2.98]
[1752997284904,3.08,178.58,178.57,8.577]
[1752997285106,1.19262295,178.59,178.58,2.98]
[1752997285305,3.08,178.6,178.58,2.98]
[1752997285599,5.5952,178.64,178.56,1.19262295]
[1752997285803,5.5952,178.64,178.58,2.98]
[1752997285804,3.08,178.6,178.58,2.98]
[1752997286805,4.27262295,178.61,178.59,5.5963]
[1752997287004,3.08,178.61,178.6,2.98]
[1752997287204,3.08,178.62,178.6,2.98]
[1752997287406,3.08,178.62,178.6,8.5761]
[1752997287705,4.27262295,178.62,178.61,2.98]
[1752997289108,3.08,178.62,178.61,2.98]
[1752997289310,4.27262295,178.62,178.61,2.98]
[1752997289500,3.08,178.62,178.61,2.98]
[1752997289809,4.27262295,178.62,178.61,2.98]
[1752997291506,3.08,178.62,178.61,2.98]
[1752997291811,4.27262295,178.62,178.61,2.98]
[1752997292012,3.08,178.62,178.6,8.7561]
[1752997292209,4.27262295,178.62,178.6,8.7561]
[1752997292716,3.08,178.62,178.6,8.7561]
[1752997293013,4.27262295,178.62,178.6,8.7561]
[1752997293213,3.15,178.61,178.6,8.7561]
[1752997294614,4.34262295,178.61,178.6,8.7561]
[1752997294914,3.15,178.61,178.6,8.7561]
[1752997295112,4.34262295,178.61,178.6,8.7561]
[1752997295615,3.15,178.61,178.6,8.7561]
[1752997295811,4.34262295,178.61,178.6,8.7561]
[1752997296012,3.15,178.61,178.6,8.7561]
[1752997299622,3.15,178.61,178.6,9.94872295]
[1752997299818,1.19262295,178.63,178.61,5.5957]
[1752997300014,4.34262295,178.63,178.62,3.16]
[1752997300419,3.15,178.63,178.62,3.16]
[1752997301319,3.15,178.63,178.62,8.7556]
[1752997301518,4.34262295,178.63,178.62,8.7556]
[1752997301923,3.15,178.63,178.62,8.7556]
[1752997303215,4.34262295,178.63,178.62,8.7556]
[1752997303622,3.15,178.63,178.62,8.7556]
[1752997303823,4.34262295,178.63,178.62,8.7556]
[1752997305227,3.15,178.63,178.62,8.7556]
[1752997305427,4.34262295,178.63,178.62,8.7556]
[1752997306231,3.15,178.63,178.62,8.7556]
[1752997306528,4.34262295,178.63,178.62,8.7556]
[1752997307228,3.15,178.63,178.62,8.7556]
[1752997307428,1.19262295,178.65,178.62,3.16]
[1752997307627,3.15,178.64,178.62,3.16]
[1752997307824,4.34262295,178.65,178.62,3.16]
[1752997308031,4.34262295,178.65,178.64,5.595]
[1752997308228,4.34262295,178.65,178.64,8.755]
[1752997309029,3.15,178.65,178.64,8.755]
[1752997309633,3.15,178.65,178.64,3.16]
[1752997310329,3.15,178.65,178.64,8.755]
[1752997310833,4.34262295,178.65,178.64,8.755]
[1752997311232,3.15,178.65,178.64,8.755]
[1752997311432,4.34262295,178.65,178.64,8.755]
[1752997311731,1.19262295,178.65,178.57,4.63989047]
[1752997311932,3.15,178.64,178.62,3.16]
[1752997312438,3.15,178.64,178.6,3.16]
[1752997312730,3.15,178.64,178.59,1.19262295]
[1752997312731,3.15,178.63,178.62,8.7556]
[1752997315329,108.8735,178.69,178.65,5.5945]
[1752997315536,1.19262295,178.66,178.65,5.5945]
[1752997315834,4.34262295,178.66,178.65,5.5945]
[1752997317229,3.15,178.66,178.65,8.7545]
[1752997318030,1.19262295,178.67,178.66,5.5943]
[1752997318234,3.18,178.67,178.64,1.19262295]
[1752997318634,3.18,178.67,178.66,5.5943]
[1752997318830,3.18,178.67,178.66,8.7443]
[1752997321137,3.18,178.67,178.66,5.5943]
[1752997323136,3.18,178.67,178.66,8.7443]
[1752997323349,3.18,178.73,178.66,4.34262295]
[1752997323540,3.18,178.72,178.62,4.63989047]
[1752997323859,3.18,178.72,178.68,1.19262295]
[1752997324036,9.38093009,178.8,178.62,4.63989047]
[1752997324037,3.18,178.71,178.69,3.15]
[1752997324436,3.18,178.7,178.69,3.15]
[1752997325139,3.18,178.71,178.69,3.15]
[1752997325642,3.18,178.71,178.7,5.5931]
[1752997325842,3.18,178.71,178.7,8.7431]
[1752997326745,4.37262295,178.71,178.68,3.15]
[1752997326947,3.18,178.7,178.69,3.15]
[1752997327848,3.18,178.7,178.69,8.7433]
[1752997329146,3.18,178.7,178.69,5.5933]
[1752997329447,3.18,178.7,178.68,3.15]
[1752997329642,3.18,178.7,178.62,4.63989047]
[1752997329643,1.86032397,178.69,178.66,3.15]
[1752997329843,3.18,178.68,178.61,287.0983902]
[1752997330048,3.18,178.68,178.63,3.15]
[1752997330438,3.18,178.68,178.65,5.5946]
[1752997330645,3.18,178.66,178.65,5.5946]
[1752997332853,3.18,178.66,178.65,8.7446]
[1752997333849,1.86032397,178.68,178.66,5.5943]
[1752997334044,3.18,178.67,178.61,106.28]
[1752997334245,3.18,178.67,178.62,4.39115669]
[1752997334451,5.04032397,178.68,178.65,3.15]
[1752997334749,3.18,178.67,178.62,180.48616333]
[1752997334946,3.18,178.67,178.64,5.5947]
[1752997335162,3.18,178.67,178.62,180.48616333]
[1752997335347,3.18,178.67,178.64,3.15]
[1752997335553,3.18,178.67,178.65,8.7444]
[1752997335746,3.18,178.67,178.65,5.5944]
[1752997336053,3.18,178.67,178.66,8.7443]
[1752997336254,3.18,178.67,178.66,3.15]
[1752997336451,3.18,178.67,178.64,3.15]
[1752997336651,5.04032397,178.69,178.66,3.15]
[1752997336852,3.18,178.68,178.67,3.15]
[1752997338351,1.86032397,178.69,178.67,3.15]
[1752997338650,3.18,178.7,178.67,3.15]
[1752997338854,3.18,178.71,178.67,3.15]
[1752997339153,3.18,178.7,178.67,3.15]
[1752997339357,1.86032397,178.69,178.66,3.15]
[1752997339551,1.86032397,178.74,178.63,106.64]
[1752997339552,3.18,178.65,178.63,106.64]
[1752997339748,3.18,178.64,178.63,106.64]
[1752997339947,3.18,178.64,178.63,4.39206212]
[1752997340149,3.18,178.64,178.63,13.13736212]
[1752997340744,3.18,178.65,178.64,8.7448]
[1752997341753,1.86032397,178.68,178.64,8.7448]
[1752997341950,3.18,178.68,178.63,3.15]
[1752997342256,1.86032397,178.7,178.62,182.3464873]
[1752997342257,3.18,178.67,178.65,3.15]
[1752997342447,3.18,178.67,178.65,8.7444]
[1752997342650,3.18,178.67,178.65,3.15]
[1752997343952,3.18,178.67,178.66,8.7443]
[1752997344158,3.18,178.67,178.66,3.15]
[1752997345561,3.18,178.67,178.66,8.7443]
[1752997349255,3.29,178.7,178.68,3.22]
[1752997349856,9.38093009,178.78,178.63,1.86032397]
[1752997350061,1.86032397,178.74,178.65,1.86032397]
[1752997350261,3.29,178.73,178.67,3.22]
[1752997350468,3.29,178.73,178.7,3.22]
[1752997352562,3.29,178.73,178.7,8.8131]
[1752997352759,3.29,178.73,178.71,3.22]
[1752997352958,3.29,178.72,178.7,5.5931]
[1752997353562,5.5921,178.74,178.71,3.22]
[1752997353758,107.71409413,178.79,178.71,5.5928]
[1752997354062,3.29,178.75,178.73,3.22]
[1752997355367,3.29,178.75,178.74,3.22]
[1752997357166,3.29,178.75,178.73,3.22]
[1752997357370,3.29,178.74,178.71,3.22]
[1752997357566,3.29,178.74,178.72,3.22]
[1752997358864,3.29,178.73,178.71,5.5926]
[1752997359059,3.29,178.73,178.72,5.5925]
[1752997359461,3.29,178.73,178.72,8.8125]
[1752997361166,3.29,178.75,178.73,5.5921]
[1752997361361,3.29,178.75,178.68,1.86032397]
[1752997361362,3.29,178.75,178.74,3.22]
[1752997365364,3.29,178.75,178.73,3.22]
[1752997365868,5.5915,178.75,178.73,3.22]
[1752997366167,3.29,178.74,178.73,3.22]
[1752997370470,3.29,178.73,178.72,3.22]
[1752997370663,3.29,178.73,178.7,3.22]
[1752997370861,1.86032397,178.71,178.66,3.22]
[1752997371061,3.29,178.7,178.68,5.5937]
[1752997371266,3.29,178.7,178.69,3.22]
[1752997372770,3.29,178.72,178.69,3.22]
[1752997373070,3.29,178.71,178.69,3.22]
[1752997373271,3.29,178.71,178.63,5.08032397]
[1752997373272,3.29,178.7,178.63,5.08032397]
[1752997373468,3.29,178.7,178.65,3.22]
[1752997373770,3.29,178.7,178.63,1.86032397]
[1752997373771,3.29,178.7,178.68,5.5935]
[1752997374066,3.29,178.7,178.69,3.22]
[1752997375167,3.29,178.7,178.68,5.5935]
[1752997375368,3.29,178.7,178.68,8.8135]
[1752997376070,1.86032397,178.72,178.69,5.5933]
[1752997376274,1.86032397,178.72,178.7,3.22]
[1752997376674,3.29,178.71,178.7,3.22]
[1752997377178,3.29,178.71,178.63,5.08032397]
[1752997377379,3.29,178.71,178.64,4.39701377]
[1752997377574,3.29,178.71,178.67,5.5938]
[1752997377880,5.15032397,178.71,178.68,3.22]
[1752997378181,3.06,178.69,178.68,3.22]
[1752997379180,3.06,178.69,178.68,8.8137]
[1752997379477,1.86032397,178.71,178.68,3.22]
[1752997379879,3.06,178.7,178.63,3.22]
[1752997380081,1.86032397,178.72,178.65,3.22]
[1752997380278,3.06,178.7,178.68,5.5934]
[1752997380478,3.06,178.72,178.69,3.22]
[1752997380874,3.06,178.72,178.64,6.50021444]
[1752997380875,3.06,178.73,178.72,3.22]
[1752997381181,7.45162397,178.76,178.72,3.22]
[1752997381380,3.06,178.74,178.72,3.22]
[1752997381576,3.06,178.74,178.72,5.5923]
[1752997381775,3.06,178.74,178.73,3.22]
[1752997383178,4.92032397,178.74,178.71,8.8127]
[1752997383383,3.06,178.73,178.71,8.8127]
[1752997383778,5.5913,178.76,178.72,5.5924]
[1752997383982,106.66,178.81,178.7,3.22]
[1752997384182,1.86032397,178.77,178.7,3.22]
[1752997384384,3.06,178.76,178.7,3.22]
[1752997384784,3.06,178.76,178.73,8.8119]
[1752997384985,3.06,178.76,178.73,3.22]
[1752997385185,3.06,178.75,178.73,3.22]
[1752997385981,3.06,178.73,178.62,180.48616333]
[1752997386182,3.06,178.7,178.67,3.22]
[1752997386484,3.06,178.7,178.64,3.22]
[1752997386785,3.06,178.7,178.62,287.38616333]
[1752997386786,1.86032397,178.69,178.65,3.22]
[1752997386984,3.06,178.67,178.65,3.22]
[1752997387596,3.06,178.68,178.62,287.38616333]
[1752997387785,3.06,178.68,178.63,4.40093496]
[1752997388087,3.06,178.67,178.65,3.22]
[1752997388289,3.06,178.66,178.62,287.38616333]
[1752997388486,3.06,178.66,178.63,4.40101348]
[1752997388685,3.06,178.66,178.64,4.40101348]
[1752997388880,3.06,178.66,178.65,3.22]
[1752997390286,3.06,178.68,178.65,3.22]
[1752997390484,3.06,178.67,178.65,3.22]
[1752997391885,5.5937,178.68,178.65,3.22]
[1752997392090,3.06,178.66,178.65,3.22]
[1752997392488,3.06,178.66,178.64,3.22]
[1752997392892,3.06,178.66,178.62,183.70616333]
[1752997393087,1.86032397,178.74,178.62,180.48616333]
[1752997393088,4.92032397,178.63,178.62,180.48616333]
[1752997393391,3.06,178.62,178.6,3.22]
[1752997394094,1.86032397,178.61,178.53,3.22]
[1752997394288,3.06,178.6,178.55,3.22]
[1752997394487,1.86032397,178.61,178.55,3.22]
[1752997394488,3.06,178.59,178.55,3.22]
[1752997394688,3.06,178.61,178.57,8.8169]
[1752997394889,3.06,178.6,178.58,3.22]
[1752997395095,9.41178773,178.71,178.58,3.22]
[1752997395289,1.86032397,178.68,178.61,3.22]
[1752997395488,3.06,178.69,178.61,3.22]
[1752997395687,1.86032397,178.69,178.61,3.22]
[1752997395894,3.06,178.66,178.64,3.22]
[1752997396093,3.06,178.66,178.59,107.46]
[1752997396294,1.86032397,178.69,178.63,5.5952]
[1752997396295,3.06,178.65,178.63,5.5952]
[1752997396595,3.06,178.65,178.59,109.32032397]
[1752997396795,1.86032397,178.69,178.65,3.22]
[1752997396796,3.06,178.67,178.65,3.22]
[1752997397197,1.86032397,178.7,178.65,3.22]
[1752997397398,1.86032397,178.7,178.62,3.22]
[1752997397399,3.06,178.69,178.62,3.22]
[1752997399095,3.06,178.67,178.64,5.5947]
[1752997399293,3.06,178.67,178.66,3.22]
[1752997400598,3.06,178.68,178.67,3.22]
[1752997403693,3.06,178.68,178.67,8.814]
[1752997404394,3.06,178.68,178.67,3.22]
[1752997412007,3.12,178.67,178.65,3.16]
[1752997412200,3.12,178.67,178.61,107.3]
[1752997412401,4.98032397,178.67,178.62,3.16]
[1752997412703,3.12,178.64,178.61,3.16]
[1752997413907,3.12,178.64,178.62,3.16]
[1752997414306,3.12,178.63,178.61,5.5957]
[1752997414498,3.12,178.62,178.61,5.5957]
[1752997414707,3.12,178.62,178.61,8.7557]
[1752997417009,3.12,178.62,178.61,3.16]
[1752997417609,3.12,178.62,178.61,8.7559]
[1752997418316,3.12,178.64,178.63,3.16]
[1752997418813,5.595,178.64,178.61,5.5958]
[1752997419113,3.12,178.63,178.62,3.16]
[1752997428814,5.5953,178.63,178.62,3.16]
[1752997429114,3.12,178.63,178.62,3.16]
[1752997430012,8.7153,178.63,178.62,3.16]
[1752997430316,3.12,178.63,178.58,3.16]
[1752997430510,5.5958,178.62,178.58,8.7566]
[1752997430717,3.12,178.61,178.59,3.16]
[1752997430916,3.12,178.6,178.59,3.16]
[1752997434815,3.12,178.61,178.59,3.16]
[1752997436722,3.12,178.6,178.59,3.16]
[1752997439323,3.19,178.63,178.6,3.22]
[1752997440216,8.7855,178.63,178.6,3.22]
[1752997440416,3.19,178.62,178.6,3.22]
[1752997440720,3.19,178.64,178.61,3.22]
[1752997441029,3.19,178.63,178.61,3.22]
[1752997441722,3.19,178.64,178.61,3.22]
[1752997442126,3.19,178.64,178.57,165.89941844]
[1752997442321,3.19,178.64,178.59,107.56]
[1752997442827,5.595,178.64,178.61,3.22]